lending/lending_fUSD_20240830
["ID","MTS","AMOUNT","RATE_DAILY","PERIOD"]
[336644198,1724995854837,-4223.28,0.00024657,4]
[336644199,1724995854849,-4223.28,0.00024657,4]
[336644200,1724995854862,-599.04239577,0.00024657,4]
[336644201,1724995854874,-4223.28,0.00024657,4]
[336644202,1724995854888,-1595.93,0.00024657,4]
[336644203,1724995854901,-4223.28,0.00024657,4]
[336644204,1724995854913,-1595.93,0.00024657,4]
[336644205,1724995854925,-4223.28,0.00024657,4]
[336644206,1724995854937,-1595.93,0.00024657,4]
[336644207,1724995854948,-4223.28,0.00024657,4]
[336644208,1724995854962,-1595.93,0.00024657,4]
[336644209,1724995854976,-4223.28,0.00024657,4]
[336644210,1724995854987,-1595.93,0.00024657,4]
[336644211,1724995854998,-4223.28,0.00024657,4]
[336644212,1724995855008,-596.29529589,0.00024657,4]
[336644213,1724995855020,-1595.93,0.00024657,4]
[336644214,1724995855031,-4223.28,0.00024657,4]
[336644215,1724995855044,-1595.93,0.00024657,4]
[336644216,1724995855057,-4223.28,0.00024657,4]
[336644217,1724995855070,-1595.93,0.00024657,4]
[336644218,1724995855083,-4223.28,0.00024657,4]
[336644219,1724995855103,-1595.93,0.00024657,4]
[336644220,1724995855118,-4223.28,0.00024657,4]
[336644221,1724995855130,-1595.93,0.00024657,4]
[336644222,1724995855142,-4223.28,0.00024657,4]
[336644223,1724995855152,-4223.28,0.00024657,4]
[336644224,1724995855164,-1595.93,0.00024657,4]
[336644225,1724995855178,-4223.28,0.00024657,4]
[336644226,1724995855191,-1595.93,0.00024657,4]
[336644227,1724995855204,-4223.28,0.00024657,4]
[336644228,1724995855214,-1595.93,0.00024657,4]
[336644229,1724995855227,-4223.28,0.00024657,4]
[336644230,1724995855238,-1595.93,0.00024657,4]
[336644231,1724995855251,-518.06155262,0.00024657,4]
[336644232,1724995855263,-4223.28,0.00024657,4]
[336644233,1724995855274,-1595.93,0.00024657,4]
[336644234,1724995855284,-4223.28,0.00024657,4]
[336644235,1724995855295,-1595.93,0.00024657,4]
[336644236,1724995855306,-4223.28,0.00024657,4]
[336644237,1724995855318,-1595.93,0.00024657,4]
[336644238,1724995855328,-1595.93,0.00024657,4]
[336644239,1724995855340,-4223.28,0.00024657,4]
[336644240,1724995855354,-4223.31,0.00024657,4]
[336644241,1724995855365,-1595.93,0.00024657,4]
[336644242,1724995855377,-1595.93,0.00024657,4]
[336644243,1724995855389,-1595.93,0.00024657,4]
[336644244,1724995855402,-1595.93,0.00024657,4]
[336644245,1724995855414,-1595.93,0.00024657,4]
[336644246,1724995855427,-1595.95,0.00024657,4]
[336644247,1724995855440,-3655.25,0.00024657,4]
[336644248,1724995855452,-3655.25,0.00024657,4]
[336644249,1724995855463,-3655.25,0.00024657,4]
[336644250,1724995855474,-3655.25,0.00024657,4]
[336644251,1724995855485,-3655.25,0.00024657,4]
[336644252,1724995855497,-3655.25,0.00024657,4]
[336644253,1724995855509,-3655.25,0.00024657,4]
[336644254,1724995855520,-3655.25,0.00024657,4]
[336644255,1724995855532,-3655.25,0.00024657,4]
[336644256,1724995855543,-3655.25,0.00024657,4]
[336644257,1724995855555,-3655.25,0.00024657,4]
[336644258,1724995855567,-3655.25,0.00024657,4]
[336644259,1724995855578,-3655.25,0.00024657,4]
[336644260,1724995855589,-3655.25,0.00024657,4]
[336644261,1724995855601,-3655.25,0.00024657,4]
[336644262,1724995855611,-3655.25,0.00024657,4]
[336644263,1724995855622,-3655.25,0.00024657,4]
[336644264,1724995855633,-3655.25,0.00024657,4]
[336644265,1724995855645,-504.23332122,0.00024657,4]
[336644266,1724995855656,-3655.25,0.00024657,4]
[336644267,1724995855667,-3655.25,0.00024657,4]
[336644268,1724995855678,-3655.25,0.00024657,4]
[336644269,1724995855689,-503.94231196,0.00024657,4]
[336644270,1724995855701,-3655.25,0.00024657,4]
[336644271,1724995855713,-3655.25,0.00024657,4]
[336644272,1724995855725,-3655.25,0.00024657,4]
[336644273,1724995855736,-572.06263931,0.00024657,4]
[336644274,1724995855748,-509.65274023,0.00024657,4]
[336644275,1724995855760,-511.75681343,0.00024657,4]
[336644276,1724995855772,-510.48210735,0.00024657,4]
[336644277,1724995855784,-9557.77,0.00024657,4]
[336644278,1724995855795,-9557.77,0.00024657,4]
[336644279,1724995855806,-9557.77,0.00024657,4]
[336644280,1724995855818,-9557.77,0.00024657,4]
[336644281,1724995855830,-9557.77,0.00024657,4]
[336644282,1724995855841,-9557.77,0.00024657,4]
[336644283,1724995855856,-9557.77,0.00024657,4]
[336644284,1724995855868,-4127.889563,0.00024657,4]
[336644285,1724995857649,-5429.880437,0.00024657,4]
[336644286,1724995857659,-2166.85636742,0.00024657,4]
[336644287,1724995857673,-7390.91363258,0.00024657,4]
[336644288,1724995857684,-9557.77,0.00024657,4]
[336644289,1724995857694,-9557.77,0.00024657,4]
[336644290,1724995857704,-9557.77,0.00024657,4]
[336644291,1724995857715,-9557.77,0.00024657,4]
[336644292,1724995857726,-9557.77,0.00024657,4]
[336644293,1724995857736,-1269.91838134,0.00024657,4]
[336644294,1724995858915,-298.57312534,0.00024657,4]
[336644295,1724995858940,-1184.89,0.00024657,4]
[336644296,1724995858954,-2435.38767799,0.00024657,4]
[336644297,1724995858977,-277.53753016,0.00012366,2]
[336644298,1724995859250,-400.0,0.00012366,2]
[336644299,1724995859263,-1301.90749695,0.00012366,2]
[336644300,1724995859277,-3343.97506869,0.00012366,2]
[336644301,1724995859287,-4786.36046934,0.00012366,2]
[336644302,1724995859306,-301.02398798,0.00012366,2]
[336644303,1724995859370,-1028.443,0.00012366,2]
[336644304,1724995859420,-2019.75244688,0.00012366,2]
[336644305,1724995859429,-151.607,0.00012366,2]
[336644306,1724995859438,-626.47160902,0.00015366,2]
[336644307,1724995859449,-862.46839337,0.00015366,2]
[336644308,1724995859459,-1062.95999981,0.00015366,2]
[336644309,1724995859470,-7233.43681074,0.00015366,2]
[336644310,1724995859906,-3667.66318706,0.00015366,2]
[336644311,1724995859915,-643.0,0.00015452,2]
[336644312,1724995859924,-4234.02620594,0.00024599,15]
[336644313,1724995860043,-279.405,0.00012366,2]
[336644314,1724995860062,-541.614,0.00012366,2]
[336644315,1724995860072,-354.11893621,0.00024599,15]
[336644316,1724995860083,-27599.999999,0.00024599,15]
[336644317,1724995860094,-496.44766807,0.00024599,15]
[336644319,1724996031690,167.52,0.00010959,2]
[336644320,1724996133668,2000.0,0.00022629,120]
[336644322,1724996570660,180.39,0.00010959,2]
[336644323,1724996677144,412.93,0.00024,120]
[336644324,1724996709421,1805.7,0.00021651,120]
[336644333,1724997032242,-298.78217594,0.00010999,2]
[336644335,1724997032251,-150.0,0.00011,2]
[336644336,1724997032261,-250.0,0.00012,2]
[336644337,1724997032271,-150.0,0.00013406,2]
[336644338,1724997032280,-6687.81894,0.00013407,2]
[336644339,1724997032290,-2930.86336463,0.00013407,2]
[336644340,1724997032299,-178.6,0.00013699,2]
[336644341,1724997032308,-556.0,0.00013731,2]
[336644342,1724997032319,-3357.22,0.00013731,2]
[336644343,1724997032328,-250.423,0.00013731,2]
[336644344,1724997032337,-499.99,0.00013731,2]
[336644345,1724997032348,-150.0,0.00013731,2]
[336644346,1724997032358,-300.0,0.00014,2]
[336644347,1724997032368,-150.99,0.00014,2]
[336644348,1724997032377,-635.30692678,0.000149,2]
[336644349,1724997032386,-796.0,0.00015,2]
[336644350,1724997032395,-704.65,0.00015,2]
[336644351,1724997032405,-150.99,0.00015,2]
[336644352,1724997032414,-299.99,0.00015,2]
[336644353,1724997032424,-350.0,0.00016,2]
[336644354,1724997032433,-150.0,0.00016731,2]
[336644355,1724997032443,-29752.49,0.0001726,2]
[336644356,1724997032452,-842.49,0.0001726,2]
[336644357,1724997032465,-326.04,0.0001726,2]
[336644358,1724997032474,-154.38,0.00017532,2]
[336644359,1724997032484,-400.0,0.00018,2]
[336644360,1724997032495,-158.63,0.00018838,2]
[336644361,1724997032505,-270.64,0.000189,7]
[336644362,1724997032515,-500.0,0.00019725,2]
[336644363,1724997032525,-900.0,0.00019725,2]
[336644364,1724997032534,-800.0,0.00019725,2]
[336644365,1724997032544,-150.0,0.00019731,2]
[336644366,1724997032553,-417.94,0.00019898,2]
[336644367,1724997032564,-450.0,0.0002,2]
[336644368,1724997032573,-2514.88222303,0.0002,5]
[336644369,1724997032582,-152.0,0.0002049,3]
[336644370,1724997032591,-500.0,0.00020821,2]
[336644371,1724997032949,-900.0,0.00020821,2]
[336644372,1724997032963,-800.0,0.00020821,2]
[336644373,1724997032972,-500.0,0.00020821,2]
[336644374,1724997032982,-250.0,0.00021206,2]
[336644375,1724997032992,-1852.42,0.00021635,2]
[336644376,1724997033002,-554.04,0.00021678,2]
[336644377,1724997033011,-152.0,0.0002177,4]
[336644378,1724997033020,-150.0,0.00021779,2]
[336644379,1724997033030,-1000.0,0.00021879,2]
[336644380,1724997033039,-250.0,0.00021891,2]
[336644381,1724997033049,-23900.0,0.00021911,2]
[336644382,1724997033058,-606.77,0.00021912,30]
[336644383,1724997033069,-900.0,0.00021917,2]
[336644384,1724997033078,-800.0,0.00021917,2]
[336644385,1724997033088,-500.0,0.00021917,2]
[336644386,1724997033098,-152.05,0.00021918,2]
[336644387,1724997033108,-400.0,0.00021942,2]
[336644388,1724997033118,-250.0,0.00021986,2]
[336644389,1724997033128,-1005.04594099,0.00022,22]
[336644390,1724997033138,-500.0,0.00022,2]
[336644391,1724997033148,-276.21,0.00022061,2]
[336644392,1724997033157,-866.41,0.00022062,2]
[336644393,1724997033167,-417.94,0.00022162,2]
[336644394,1724997033177,-3000.0,0.000222,2]
[336644395,1724997033188,-176.91,0.00022559,2]
[336644396,1724997033197,-152.05,0.00022603,2]
[336644397,1724997033207,-791.32,0.0002274,2]
[336644398,1724997033217,-421.76,0.0002274,2]
[336644399,1724997033227,-791.32,0.0002274,2]
[336644400,1724997033237,-421.76,0.0002274,2]
[336644401,1724997033247,-440.54,0.00022877,2]
[336644402,1724997033257,-791.18,0.00022877,2]
[336644403,1724997033267,-900.0,0.00023013,2]
[336644404,1724997033277,-800.0,0.00023013,2]
[336644405,1724997033287,-500.0,0.00023013,2]
[336644406,1724997033297,-349.75,0.00023014,2]
[336644407,1724997033307,-427.06,0.00023014,2]
[336644408,1724997033317,-152.0,0.00023051,5]
[336644409,1724997033326,-152.05,0.00023288,2]
[336644410,1724997033336,-2000.0,0.000233,2]
[336644411,1724997033346,-300.09,0.00023562,2]
[336644412,1724997033356,-558.07,0.00023689,3]
[336644413,1724997033365,-279.03,0.00023689,3]
[336644414,1724997033375,-837.13,0.00023689,3]
[336644415,1724997033385,-421.76,0.00023699,2]
[336644416,1724997033396,-791.32,0.00023699,2]
[336644417,1724997033406,-421.76,0.00023699,2]
[336644418,1724997033416,-791.32,0.00023699,2]
[336644419,1724997033426,-791.32,0.00023699,2]
[336644420,1724997033435,-835.58,0.00023699,2]
[336644421,1724997033445,-420.26584359,0.000239,2]
[336644422,1724997033454,-152.05,0.00023973,2]
[336644423,1724997033469,-550.0,0.00024,2]
[336644424,1724997033479,-8792.01717476,0.00024,5]
[336644425,1724997033488,-17727.75361043,0.00024,2]
[336644426,1724997033497,-700.0,0.00024,2]
[336644427,1724997033507,-420.26584354,0.00024003,2]
[336644428,1724997033517,-528.36434138,0.00024006,2]
[336644429,1724997033559,-2984.2065,0.00024006,2]
[336644436,1724997038333,-1183.25923031,0.00010997,2]
[336644437,1724997038344,-3413.85644702,0.00010997,2]
[336644438,1724997038355,-4032.83102732,0.00010997,2]
[336644439,1724997038366,-1379.86572107,0.00010997,2]
[336644440,1724997038452,-617.53442811,0.00010997,2]
[336644441,1724997038507,-1590.380762,0.00010997,2]
[336644442,1724997038620,-29286.56552597,0.00010997,2]
[336644443,1724997038630,-1487.42915862,0.00024006,2]
[336644444,1724997038640,-610.94,0.00024045,3]
[336644445,1724997038651,-176.91,0.00024063,2]
[336644446,1724997038660,-180.0,0.00024072,2]
[336644447,1724997038670,-500.0,0.00024074,2]
[336644448,1724997038680,-5104.0,0.0002408,2]
[336644450,1724997038690,-352.62,0.000241,14]
[336644452,1724997038699,-420.26584354,0.00024107,2]
[336644454,1724997038709,-900.0,0.00024109,2]
[336644456,1724997038720,-800.0,0.00024109,2]
[336644458,1724997038729,-500.0,0.00024109,2]
[336644460,1724997038738,-500.0,0.00024174,2]
[336644462,1724997038747,-420.26584354,0.0002421,2]
[336644464,1724997038756,-500.0,0.00024282,2]
[336644465,1724997038765,-500.0,0.00024291,2]
[336644467,1724997038774,-420.26584354,0.00024314,2]
[336644469,1724997038783,-152.0,0.00024331,6]
[336644471,1724997038792,-500.0,0.00024412,2]
[336644473,1724997038801,-900.0,0.00024413,2]
[336644475,1724997038811,-420.26584354,0.00024417,2]
[336644477,1724997038821,-417.94,0.00024426,2]
[336644479,1724997038831,-2110.0,0.00024431,30]
[336644481,1724997038841,-500.0,0.00024456,2]
[336644483,1724997038851,-200.0,0.00024458,2]
[336644485,1724997038862,-600.0,0.00024484,2]
[336644487,1724997038871,-500.0,0.00024497,2]
[336644488,1724997038880,-185.38543641,0.0002452,2]
[336644490,1724997038889,-420.26584354,0.00024521,2]
[336644492,1724997038898,-900.0,0.00024549,2]
[336644494,1724997038908,-905.304,0.0002455,2]
[336644496,1724997038917,-1000.0,0.00024557,2]
[336644498,1724997038926,-422.6397,0.00024557,2]
[336644499,1724997038935,-7500.0,0.00024557,2]
[336644501,1724997038944,-171.17415423,0.00024557,2]
[336644503,1724997038953,-345.36063455,0.00024557,2]
[336644505,1724997038964,-5800.0,0.00024592,2]
[336644507,1724997038974,-500.0,0.00024592,2]
[336644509,1724997038984,-5800.0,0.000246,2]
[336644510,1724997038993,-506.0,0.000246,8]
[336644512,1724997039002,-500.0,0.00024608,2]
[336644514,1724997039011,-1000.0,0.00024613,2]
[336644516,1724997039020,-420.26584354,0.00024624,2]
[336644518,1724997039030,-508.05295576,0.00024628,2]
[336644520,1724997039039,-500.0,0.00024633,2]
[336644521,1724997039048,-1020.0824036,0.00024651,2]
[336644523,1724997039057,-5457.490697,0.00024651,2]
[336644525,1724997039067,-671.53266182,0.00024651,2]
[336644527,1724997039076,-671.5326615,0.00024651,2]
[336644529,1724997039085,-1274.7119679,0.00024651,2]
[336644531,1724997039094,-4446.2028222,0.00024651,2]
[336644533,1724997039104,-18919.6712113,0.00024651,2]
[336644534,1724997039113,-2500.0,0.00024652,5]
[336644536,1724997039122,-204.40626104,0.00024655,2]
[336644538,1724997039132,-582.0,0.00024657,2]
[336644540,1724997039141,-4369.00081533,0.00024657,4]
[336644542,1724997039152,-9557.77,0.00024657,4]
[336644544,1724997039161,-9557.77,0.00024657,4]
[336644546,1724997039171,-9557.77,0.00024657,4]
[336644548,1724997039180,-9557.77,0.00024657,4]
[336644550,1724997039189,-9557.77,0.00024657,4]
[336644552,1724997039198,-9557.77,0.00024657,4]
[336644554,1724997039208,-9557.77,0.00024657,4]
[336644556,1724997039217,-9557.77,0.00024657,4]
[336644558,1724997039227,-9557.95280095,0.00024657,4]
[336644560,1724997039236,-500.0,0.00024657,4]
[336644562,1724997039246,-500.0,0.00024657,4]
[336644563,1724997039256,-500.0,0.00024657,4]
[336644566,1724997039267,-634.1916022,0.00024657,4]
[336644568,1724997039277,-588.38390607,0.00024657,4]
[336644570,1724997039286,-512.6686836,0.00024657,4]
[336644571,1724997039297,-513.5970138,0.00024657,4]
[336644573,1724997039307,-6693.99,0.00024657,4]
[336644575,1724997039316,-6693.99,0.00024657,4]
[336644577,1724997039326,-6693.99,0.00024657,4]
[336644579,1724997039335,-6693.99,0.00024657,4]
[336644581,1724997039345,-6693.99,0.00024657,4]
[336644583,1724997039354,-6693.99,0.00024657,4]
[336644585,1724997039364,-6693.99,0.00024657,4]
[336644586,1724997039373,-6693.99,0.00024657,4]
[336644588,1724997039383,-6693.99,0.00024657,4]
[336644590,1724997039393,-6693.99,0.00024657,4]
[336644592,1724997039402,-6693.99,0.00024657,4]
[336644594,1724997039412,-6693.99,0.00024657,4]
[336644596,1724997039421,-6693.99,0.00024657,4]
[336644598,1724997039431,-6693.99,0.00024657,4]
[336644600,1724997039441,-6693.99,0.00024657,4]
[336644601,1724997039450,-6693.99,0.00024657,4]
[336644603,1724997039462,-6693.99,0.00024657,4]
[336644605,1724997039471,-6693.99,0.00024657,4]
[336644607,1724997039481,-6693.99,0.00024657,4]
[336644609,1724997039492,-6693.99,0.00024657,4]
[336644611,1724997039501,-6693.99,0.00024657,4]
[336644613,1724997039511,-6693.99,0.00024657,4]
[336644615,1724997039521,-6693.99,0.00024657,4]
[336644617,1724997039530,-6694.08,0.00024657,4]
[336644619,1724997039541,-6144.14,0.00024657,4]
[336644621,1724997039550,-501.04170216,0.00024657,4]
[336644623,1724997039559,-6144.14,0.00024657,4]
[336644625,1724997039570,-6144.14,0.00024657,4]
[336644627,1724997039579,-6144.14,0.00024657,4]
[336644629,1724997039589,-6144.14,0.00024657,4]
[336644631,1724997039599,-6144.14,0.00024657,4]
[336644632,1724997039608,-6144.14,0.00024657,4]
[336644634,1724997039617,-6144.14,0.00024657,4]
[336644636,1724997039627,-6144.14,0.00024657,4]
[336644638,1724997039636,-6144.14,0.00024657,4]
[336644640,1724997039646,-6144.14,0.00024657,4]
[336644642,1724997039656,-6144.14,0.00024657,4]
[336644644,1724997039665,-6144.14,0.00024657,4]
[336644646,1724997039674,-6144.14,0.00024657,4]
[336644648,1724997039683,-6144.14,0.00024657,4]
[336644650,1724997039693,-6144.14,0.00024657,4]
[336644652,1724997039702,-6144.14,0.00024657,4]
[336644654,1724997039711,-6144.14,0.00024657,4]
[336644656,1724997039721,-6144.14,0.00024657,4]
[336644658,1724997039730,-6144.14,0.00024657,4]
[336644660,1724997039739,-6144.14,0.00024657,4]
[336644662,1724997039749,-6144.14,0.00024657,4]
[336644664,1724997039758,-6144.14,0.00024657,4]
[336644666,1724997039767,-6144.23,0.00024657,4]
[336644668,1724997039777,-500.0,0.00024657,4]
[336644670,1724997039786,-500.0,0.00024657,4]
[336644671,1724997039796,-500.0,0.00024657,4]
[336644673,1724997039806,-500.0,0.00024657,4]
[336644675,1724997039814,-500.0,0.00024657,4]
[336644677,1724997039826,-500.0,0.00024657,4]
[336644678,1724997039835,-500.0,0.00024657,4]
[336644679,1724997039845,-500.0,0.00024657,4]
[336644680,1724997039855,-500.0,0.00024657,4]
[336644681,1724997039864,-500.0,0.00024657,4]
[336644682,1724997039873,-500.0,0.00024657,4]
[336644683,1724997039883,-500.0,0.00024657,4]
[336644684,1724997039892,-500.0,0.00024657,4]
[336644685,1724997039902,-500.0,0.00024657,4]
[336644686,1724997039912,-500.0,0.00024657,4]
[336644687,1724997039923,-457.15657165,0.00024657,4]
[336644688,1724997039934,-500.64,0.00024657,4]
[336644689,1724997039945,-500.64,0.00024657,4]
[336644690,1724997039955,-2949.84,0.00024657,4]
[336644692,1724997039964,-500.64,0.00024657,4]
[336644694,1724997039973,-2949.84,0.00024657,4]
[336644696,1724997039982,-500.64,0.00024657,4]
[336644698,1724997039995,-2949.84,0.00024657,4]
[336644700,1724997040004,-500.64,0.00024657,4]
[336644702,1724997040014,-2949.84,0.00024657,4]
[336644704,1724997040023,-500.64,0.00024657,4]
[336644706,1724997040033,-2949.84,0.00024657,4]
[336644708,1724997040043,-500.64,0.00024657,4]
[336644709,1724997040052,-2949.84,0.00024657,4]
[336644711,1724997040062,-500.64,0.00024657,4]
[336644713,1724997040072,-2949.84,0.00024657,4]
[336644715,1724997040081,-500.64,0.00024657,4]
[336644717,1724997040091,-2949.84,0.00024657,4]
[336644719,1724997040101,-500.64,0.00024657,4]
[336644721,1724997040111,-2949.84,0.00024657,4]
[336644723,1724997040121,-500.64,0.00024657,4]
[336644726,1724997040130,-2949.84,0.00024657,4]
[336644728,1724997040140,-500.64,0.00024657,4]
[336644730,1724997040150,-2949.84,0.00024657,4]
[336644732,1724997040159,-500.64,0.00024657,4]
[336644734,1724997040169,-2949.84,0.00024657,4]
[336644736,1724997040179,-500.64,0.00024657,4]
[336644738,1724997040189,-2949.84,0.00024657,4]
[336644740,1724997040198,-2949.84,0.00024657,4]
[336644742,1724997040208,-2949.84,0.00024657,4]
[336644744,1724997040218,-500.64,0.00024657,4]
[336644746,1724997040227,-2949.84,0.00024657,4]
[336644748,1724997040237,-500.64,0.00024657,4]
[336644750,1724997040246,-2949.84,0.00024657,4]
[336644752,1724997040256,-500.64,0.00024657,4]
[336644754,1724997040265,-2949.84,0.00024657,4]
[336644755,1724997040275,-500.64,0.00024657,4]
[336644757,1724997040284,-2949.84,0.00024657,4]
[336644759,1724997040295,-500.64,0.00024657,4]
[336644761,1724997040305,-2949.84,0.00024657,4]
[336644764,1724997040315,-500.64,0.00024657,4]
[336644765,1724997040324,-500.64,0.00024657,4]
[336644767,1724997040334,-2949.84,0.00024657,4]
[336644769,1724997040344,-500.64,0.00024657,4]
[336644771,1724997040353,-2949.84,0.00024657,4]
[336644773,1724997040363,-500.64,0.00024657,4]
[336644775,1724997040372,-2949.84,0.00024657,4]
[336644777,1724997040382,-500.64119536,0.00024657,4]
[336644779,1724997040391,-2949.91873632,0.00024657,4]
[336644781,1724997040402,-784.65,0.00024657,4]
[336644783,1724997040411,-784.65,0.00024657,4]
[336644785,1724997040421,-784.65,0.00024657,4]
[336644787,1724997040430,-784.65,0.00024657,4]
[336644789,1724997040439,-784.65,0.00024657,4]
[336644791,1724997040449,-784.65,0.00024657,4]
[336644793,1724997040461,-784.65,0.00024657,4]
[336644795,1724997040472,-784.65,0.00024657,4]
[336644797,1724997040481,-784.65,0.00024657,4]
[336644799,1724997040490,-784.65,0.00024657,4]
[336644801,1724997040500,-784.65,0.00024657,4]
[336644803,1724997040510,-3026.26,0.00024657,4]
[336644805,1724997040519,-784.65,0.00024657,4]
[336644806,1724997040528,-3026.26,0.00024657,4]
[336644808,1724997040540,-784.65,0.00024657,4]
[336644810,1724997040556,-3026.26,0.00024657,4]
[336644813,1724997040567,-784.65,0.00024657,4]
[336644815,1724997040577,-3026.26,0.00024657,4]
[336644817,1724997040586,-3026.26,0.00024657,4]
[336644818,1724997040595,-784.65,0.00024657,4]
[336644821,1724997040605,-3026.26,0.00024657,4]
[336644822,1724997040614,-784.65,0.00024657,4]
[336644824,1724997040624,-3026.26,0.00024657,4]
[336644826,1724997040634,-784.65,0.00024657,4]
[336644828,1724997040643,-784.65,0.00024657,4]
[336644831,1724997040653,-3026.26,0.00024657,4]
[336644832,1724997040662,-784.65,0.00024657,4]
[336644834,1724997040672,-3026.26,0.00024657,4]
[336644836,1724997040681,-784.65,0.00024657,4]
[336644838,1724997040691,-3026.26,0.00024657,4]
[336644840,1724997040701,-784.65,0.00024657,4]
[336644842,1724997040710,-3026.26,0.00024657,4]
[336644844,1724997040720,-784.65,0.00024657,4]
[336644847,1724997040730,-3026.26,0.00024657,4]
[336644848,1724997040740,-784.65,0.00024657,4]
[336644850,1724997040750,-3026.26,0.00024657,4]
[336644852,1724997040759,-784.84919682,0.00024657,4]
[336644855,1724997040769,-3026.26,0.00024657,4]
[336644857,1724997040779,-3026.26,0.00024657,4]
[336644859,1724997040788,-3026.26,0.00024657,4]
[336644860,1724997040802,-3026.26,0.00024657,4]
[336644863,1724997040812,-3026.26,0.00024657,4]
[336644864,1724997040821,-3026.26,0.00024657,4]
[336644866,1724997040830,-3026.26,0.00024657,4]
[336644868,1724997040839,-1480.36,0.00024657,4]
[336644870,1724997040848,-3026.26,0.00024657,4]
[336644873,1724997040858,-1480.36,0.00024657,4]
[336644874,1724997040868,-3026.26,0.00024657,4]
[336644876,1724997040877,-1480.36,0.00024657,4]
[336644878,1724997040886,-1480.36,0.00024657,4]
[336644880,1724997040896,-1480.36,0.00024657,4]
[336644882,1724997040906,-500.0,0.00024657,4]
[336644884,1724997040915,-1480.36,0.00024657,4]
[336644886,1724997040924,-500.0,0.00024657,4]
[336644888,1724997040933,-3026.26,0.00024657,4]
[336644890,1724997040943,-1480.36,0.00024657,4]
[336644892,1724997040952,-477.43962018,0.00024657,4]
[336644894,1724997040962,-3026.28349809,0.00024657,4]
[336644896,1724997040972,-1480.36,0.00024657,4]
[336644898,1724997040981,-1480.36,0.00024657,4]
[336644900,1724997040991,-1480.36,0.00024657,4]
[336644902,1724997041001,-1480.36,0.00024657,4]
[336644904,1724997041010,-1480.36,0.00024657,4]
[336644906,1724997041019,-1480.36,0.00024657,4]
[336644908,1724997041028,-1480.36,0.00024657,4]
[336644910,1724997041038,-1480.36,0.00024657,4]
[336644912,1724997041048,-500.0,0.00024657,4]
[336644914,1724997041057,-1480.36,0.00024657,4]
[336644916,1724997041066,-500.0,0.00024657,4]
[336644918,1724997041076,-1480.36,0.00024657,4]
[336644920,1724997041086,-244.54046882,0.00024657,4]
[336644922,1724997041095,-1480.36,0.00024657,4]
[336644924,1724997041104,-1480.36,0.00024657,4]
[336644926,1724997041114,-1480.36,0.00024657,4]
[336644928,1724997041123,-1480.36,0.00024657,4]
[336644929,1724997041132,-1480.36,0.00024657,4]
[336644931,1724997041142,-1480.36,0.00024657,4]
[336644933,1724997041151,-1480.46294796,0.00024657,4]
[336644935,1724997041160,-3231.03,0.00024657,4]
[336644937,1724997041170,-3231.03,0.00024657,4]
[336644939,1724997041179,-3231.03,0.00024657,4]
[336644941,1724997041188,-3231.03,0.00024657,4]
[336644943,1724997041198,-3231.03,0.00024657,4]
[336644945,1724997041207,-3231.03,0.00024657,4]
[336644947,1724997041216,-3231.03,0.00024657,4]
[336644949,1724997041225,-3231.03,0.00024657,4]
[336644950,1724997041235,-3231.03,0.00024657,4]
[336644952,1724997041244,-3231.03,0.00024657,4]